[Event "Irish Championship 2026"]
[Site "Talbot Hotel Stillorgan, Co.Dublin, IE"]
[Date "2026.08.07"]
[Round "7"]
[White "Daly, Colm"]
[Black "Barnes, Oliver"]
[Result "0-1"]
[Board "66"]
[TimeControl "40/5400+30:1800+30"]
[WhiteFideId "2500434"]
[BlackFideId "2517604"]
[WhiteElo "2182"]
[BlackElo "2107"]
[WhiteTitle "FM"]
[WhiteClock "0:26:12"]
[BlackClock "0:28:59"]
[Variant "Standard"]
[EndDate "2026.08.07"]
[EndTime "18:05:15"]

1. Nf3 {[%clk 1:16:37]}  c5 {[%clk 1:30:47]} 2. e4 {[%clk 1:15:52]}  e6 {[%clk 1:31:09]} 3. d4 {[%clk 1:16:15]}  cxd4 {[%clk 1:31:38]}
4. Nxd4 {[%clk 1:16:38]}  a6 {[%clk 1:32:03]} 5. Nc3 {[%clk 1:14:49]}  Qc7 {[%clk 1:32:28]} 6. a3 {[%clk 1:11:39]}  Nf6 {[%clk 1:28:17]}
7. Bg5 {[%clk 0:53:23]}  Be7 {[%clk 1:26:08]} 8. f4 {[%clk 0:50:14]}  h6 {[%clk 1:16:15]} 9. Bxf6 {[%clk 0:50:35]}  Bxf6 {[%clk 1:14:57]}
10. e5 {[%clk 0:50:33]}  Be7 {[%clk 1:15:26]} 11. Bd3 {[%clk 0:49:08]}  d6 {[%clk 1:06:24]} 12. Qe2 {[%clk 0:48:57]}  Nd7 {[%clk 0:56:23]}
13. Nf3 {[%clk 0:48:17]}  dxe5 {[%clk 0:47:42]} 14. fxe5 {[%clk 0:48:39]}  Nc5 {[%clk 0:43:45]} 15. Ne4 {[%clk 0:45:34]}  Bd7 {[%clk 0:41:52]}
16. Nxc5 {[%clk 0:39:08]}  Bxc5 {[%clk 0:40:51]} 17. b4 {[%clk 0:35:48]}  Ba7 {[%clk 0:40:42]} 18. c4 {[%clk 0:35:56]}  Bc6 {[%clk 0:40:57]}
19. Be4 {[%clk 0:36:12]}  Rc8 {[%clk 0:39:58]} 20. Rc1 {[%clk 0:33:35]}  O-O {[%clk 0:39:20]} 21. h4 {[%clk 0:28:36]}  Rfd8 {[%clk 0:35:26]}
22. h5 {[%clk 0:24:30]}  Rd7 {[%clk 0:22:50]} 23. Rh4 {[%clk 0:22:04]}  Rcd8 {[%clk 0:22:19]} 24. c5 {[%clk 0:18:37]}  Bb5 {[%clk 0:16:32]}
25. Qe3 {[%clk 0:17:23]}  f5 {[%clk 0:16:03]} 26. Bc2 {[%clk 0:12:38]}  Bc6 {[%clk 0:14:41]} 27. Bb3 {[%clk 0:10:57]}  Bd5 {[%clk 0:14:49]}
28. Rd4 {[%clk 0:08:49]}  Kf7 {[%clk 0:06:56]} 29. Bxd5 {[%clk 0:08:32]}  Rxd5 {[%clk 0:07:23]} 30. Rcd1 {[%clk 0:07:42]}  Qc6 {[%clk 0:06:57]}
31. Qf4 {[%clk 0:05:24]}  b6 {[%clk 0:06:10]} 32. Rxd5 {[%clk 0:02:50]}  Rxd5 {[%clk 0:06:38]} 33. g4 {[%clk 0:02:52]}  Rxd1+ {[%clk 0:06:09]}
34. Kxd1 {[%clk 0:03:21]}  Qd5+ {[%clk 0:06:03]} 35. Ke1 {[%clk 0:02:48]}  Qe4+ {[%clk 0:02:20]} 36. Qxe4 {[%clk 0:03:16]}  fxe4 {[%clk 0:02:49]}
37. c6 {[%clk 0:03:38]}  Bb8 {[%clk 0:03:18]} 38. Nd2 {[%clk 0:04:07]}  Bxe5 {[%clk 0:02:58]} 39. Nxe4 {[%clk 0:02:12]}  Ke7 {[%clk 0:03:22]}
40. a4 {[%clk 0:02:17]}  b5 {[%clk 0:03:28]} 41. a5 {[%clk 0:28:45]}  Bd6 {[%clk 0:32:14]} 42. Ke2 {[%clk 0:24:52]}  Bxb4 {[%clk 0:31:58]}
43. Kd3 {[%clk 0:25:09]}  Kd8 {[%clk 0:29:32]} 44. Kd4 {[%clk 0:24:17]}  Kc7 {[%clk 0:29:47]} 45. Ke5 {[%clk 0:24:46]}  Kxc6 {[%clk 0:29:21]}
46. Kxe6 {[%clk 0:25:15]}  Bxa5 {[%clk 0:28:08]} 47. Kf7 {[%clk 0:25:44]}  Kd5 {[%clk 0:28:16]} 48. Ng3 {[%clk 0:25:13]}  Bc3 {[%clk 0:27:48]}
49. Nf5 {[%clk 0:25:39]}  b4 {[%clk 0:27:57]} 50. g5 {[%clk 0:24:09]}  hxg5 {[%clk 0:27:09]} 51. Nxg7 {[%clk 0:24:32]}  Bxg7 {[%clk 0:27:28]}
52. Kxg7 {[%clk 0:24:56]}  b3 {[%clk 0:27:51]} 53. h6 {[%clk 0:25:24]}  b2 {[%clk 0:28:16]} 54. h7 {[%clk 0:25:52]}  b1=Q {[%clk 0:28:35]}
55. h8=Q {[%clk 0:26:12]}  Qb2+ {[%clk 0:28:59]} 0-1

[Event "Irish Championship 2026"]
[Site "Talbot Hotel Stillorgan, Co.Dublin, IE"]
[Date "2026.08.07"]
[Round "7"]
[White "Jason Liu"]
[Black "Landmark, Gabriel"]
[Result "1-0"]
[Board "67"]
[TimeControl "40/5400+30:1800+30"]
[BlackFideId "2524848"]
[WhiteElo "2161"]
[BlackElo "1999"]
[WhiteClock "0:03:49"]
[BlackClock "0:01:54"]
[Variant "Standard"]
[EndDate "2026.08.07"]
[EndTime "19:47:49"]

1. e4 {[%clk 1:30:57]}  e5 {[%clk 1:30:46]} 2. Nf3 {[%clk 1:31:23]}  Nc6 {[%clk 1:31:12]} 3. Bc4 {[%clk 1:31:42]}  Nf6 {[%clk 1:31:37]}
4. d4 {[%clk 1:31:02]}  exd4 {[%clk 1:30:29]} 5. e5 {[%clk 1:31:14]}  d5 {[%clk 1:30:23]} 6. Bb5 {[%clk 1:31:34]}  Ne4 {[%clk 1:29:44]}
7. Nxd4 {[%clk 1:31:25]}  Bd7 {[%clk 1:29:30]} 8. Bxc6 {[%clk 1:31:37]}  bxc6 {[%clk 1:28:59]} 9. O-O {[%clk 1:30:58]}  g6 {[%clk 1:24:36]}
10. f3 {[%clk 1:23:09]}  Nc5 {[%clk 1:22:12]} 11. Be3 {[%clk 1:15:53]}  Ne6 {[%clk 1:19:42]} 12. f4 {[%clk 1:12:10]}  c5 {[%clk 1:05:01]}
13. Nxe6 {[%clk 1:07:13]}  Bxe6 {[%clk 1:04:40]} 14. c3 {[%clk 1:07:10]}  Qd7 {[%clk 1:03:56]} 15. Nd2 {[%clk 1:03:35]}  c4 {[%clk 0:58:26]}
16. b3 {[%clk 0:54:00]}  cxb3 {[%clk 0:55:22]} 17. axb3 {[%clk 0:51:36]}  c5 {[%clk 0:53:28]} 18. Ra5 {[%clk 0:46:39]}  d4 {[%clk 0:52:37]}
19. cxd4 {[%clk 0:44:07]}  cxd4 {[%clk 0:53:00]} 20. Ne4 {[%clk 0:43:20]}  Be7 {[%clk 0:51:07]} 21. Qxd4 {[%clk 0:41:01]}  Qxd4 {[%clk 0:50:29]}
22. Bxd4 {[%clk 0:41:27]}  O-O {[%clk 0:50:09]} 23. Bc5 {[%clk 0:24:33]}  Bxc5+ {[%clk 0:49:31]} 24. Nxc5 {[%clk 0:24:59]}  Bf5 {[%clk 0:49:55]}
25. Rd1 {[%clk 0:23:26]}  Rfc8 {[%clk 0:46:31]} 26. Rd4 {[%clk 0:20:58]}  Rcb8 {[%clk 0:43:27]} 27. Kf2 {[%clk 0:20:07]}  Rb6 {[%clk 0:42:43]}
28. Ke3 {[%clk 0:19:57]}  Kf8 {[%clk 0:28:50]} 29. Kd2 {[%clk 0:19:20]}  a6 {[%clk 0:20:25]} 30. Kc3 {[%clk 0:17:43]}  Ke7 {[%clk 0:20:01]}
31. Rda4 {[%clk 0:15:33]}  Bc8 {[%clk 0:19:48]} 32. b4 {[%clk 0:14:09]}  Rc6 {[%clk 0:18:49]} 33. Kd4 {[%clk 0:13:36]}  Rb8 {[%clk 0:18:37]}
34. Kc4 {[%clk 0:11:14]}  Rbb6 {[%clk 0:18:05]} 35. Ra1 {[%clk 0:11:23]}  Be6+ {[%clk 0:17:43]} 36. Kc3 {[%clk 0:11:41]}  Bc8 {[%clk 0:18:01]}
37. Rd1 {[%clk 0:11:05]}  h5 {[%clk 0:16:54]} 38. Rd5 {[%clk 0:09:35]}  Be6 {[%clk 0:15:05]} 39. Rd6 {[%clk 0:07:37]}  Bc8 {[%clk 0:15:19]}
40. Rxc6 {[%clk 0:07:34]}  Rxc6 {[%clk 0:15:44]} 41. Kc4 {[%clk 0:06:26]}  Rb6 {[%clk 0:14:43]} 42. g3 {[%clk 0:02:33]}  Bg4 {[%clk 0:13:31]}
43. Kc3 {[%clk 0:01:52]}  Bc8 {[%clk 0:13:27]} 44. Ne4 {[%clk 0:26:45]}  Rc6+ {[%clk 0:42:55]} 45. Rc5 {[%clk 0:25:59]}  Rxc5+ {[%clk 0:42:43]}
46. Nxc5 {[%clk 0:25:45]}  Kd8 {[%clk 0:42:44]} 47. Ne4 {[%clk 0:14:31]}  Ke7 {[%clk 0:36:35]} 48. Kd4 {[%clk 0:13:31]}  Bg4 {[%clk 0:17:06]}
49. Nc5 {[%clk 0:09:40]}  Be2 {[%clk 0:16:42]} 50. Kd5 {[%clk 0:07:26]}  Bf3+ {[%clk 0:16:14]} 51. Kd4 {[%clk 0:07:37]}  Be2 {[%clk 0:16:37]}
52. Ne4 {[%clk 0:07:43]}  Bf3 {[%clk 0:16:31]} 53. Ng5 {[%clk 0:07:56]}  Bg2 {[%clk 0:16:17]} 54. Kc5 {[%clk 0:06:52]}  Bf1 {[%clk 0:11:56]}
55. Kd4 {[%clk 0:06:36]}  Bg2 {[%clk 0:12:02]} 56. h3 {[%clk 0:05:39]}  Bf1 {[%clk 0:11:17]} 57. g4 {[%clk 0:05:22]}  hxg4 {[%clk 0:11:06]}
58. hxg4 {[%clk 0:05:03]}  Be2 {[%clk 0:10:09]} 59. f5 {[%clk 0:05:31]}  Bxg4 {[%clk 0:10:26]} 60. f6+ {[%clk 0:05:58]}  Ke8 {[%clk 0:10:18]}
61. Kc5 {[%clk 0:05:14]}  Be2 {[%clk 0:09:55]} 62. Kd6 {[%clk 0:05:42]}  Bc4 {[%clk 0:10:11]} 63. Kc5 {[%clk 0:04:55]}  Bd3 {[%clk 0:10:14]}
64. Kd4 {[%clk 0:05:19]}  Bc2 {[%clk 0:10:17]} 65. Ke3 {[%clk 0:04:30]}  Bb1 {[%clk 0:10:12]} 66. Kf4 {[%clk 0:04:58]}  Ba2 {[%clk 0:10:16]}
67. Ne4 {[%clk 0:05:06]}  Bd5 {[%clk 0:09:43]} 68. Nc5 {[%clk 0:05:19]}  Bc4 {[%clk 0:10:03]} 69. Kg5 {[%clk 0:05:40]}  Kd8 {[%clk 0:04:59]}
70. e6 {[%clk 0:03:43]}  fxe6 {[%clk 0:04:22]} 71. Kxg6 {[%clk 0:04:06]}  e5 {[%clk 0:04:25]} 72. Kf5 {[%clk 0:04:27]}  Ke8 {[%clk 0:04:14]}
73. Kxe5 {[%clk 0:04:39]}  Kf7 {[%clk 0:04:37]} 74. Ne4 {[%clk 0:04:51]}  Bf1 {[%clk 0:03:50]} 75. Ng5+ {[%clk 0:04:42]}  Kf8 {[%clk 0:03:53]}
76. Nf3 {[%clk 0:03:07]}  Kf7 {[%clk 0:03:53]} 77. Kf5 {[%clk 0:03:17]}  Bd3+ {[%clk 0:04:13]} 78. Kg5 {[%clk 0:03:39]}  Ke6 {[%clk 0:04:03]}
79. Nd4+ {[%clk 0:03:15]}  Kf7 {[%clk 0:04:21]} 80. Nc6 {[%clk 0:03:42]}  Bc2 {[%clk 0:04:08]} 81. Nd8+ {[%clk 0:04:02]}  Ke8 {[%clk 0:03:58]}
82. Nb7 {[%clk 0:03:42]}  Bb3 {[%clk 0:03:14]} 83. Kg6 {[%clk 0:03:44]}  Kf8 {[%clk 0:03:31]} 84. Kg5 {[%clk 0:03:43]}  Bc4 {[%clk 0:03:35]}
85. Nc5 {[%clk 0:03:55]}  Kf7 {[%clk 0:03:49]} 86. Ne4 {[%clk 0:03:49]}  Bd3 {[%clk 0:04:08]} 87. Nd6+ {[%clk 0:03:42]}  Kf8 {[%clk 0:04:17]}
88. Kf4 {[%clk 0:02:50]}  Bf1 {[%clk 0:04:14]} 89. Ke5 {[%clk 0:03:14]}  Bg2 {[%clk 0:04:16]} 90. Kf5 {[%clk 0:02:38]}  Bf1 {[%clk 0:04:38]}
91. Kg5 {[%clk 0:02:49]}  Bd3 {[%clk 0:04:54]} 92. Nf5 {[%clk 0:02:43]}  Kf7 {[%clk 0:05:05]} 93. Nh6+ {[%clk 0:02:58]}  Kf8 {[%clk 0:05:27]}
94. Ng4 {[%clk 0:03:09]}  Bc4 {[%clk 0:05:22]} 95. Ne5 {[%clk 0:03:38]}  Bb3 {[%clk 0:04:55]} 96. Kf5 {[%clk 0:03:08]}  Bd5 {[%clk 0:04:28]}
97. Nd3 {[%clk 0:01:14]}  Bc4 {[%clk 0:03:26]} 98. Nc5 {[%clk 0:01:39]}  Kf7 {[%clk 0:03:42]} 99. Nb7 {[%clk 0:01:51]}  Bf1 {[%clk 0:03:49]}
100. Kg5 {[%clk 0:01:54]}  Bd3 {[%clk 0:04:02]} 101. Nd8+ {[%clk 0:01:21]}  Ke8 {[%clk 0:04:01]} 102. Nc6 {[%clk 0:01:11]}  Bb1 {[%clk 0:04:07]}
103. Ne5 {[%clk 0:01:01]}  Kf8 {[%clk 0:04:20]} 104. Nd7+ {[%clk 0:01:18]}  Ke8 {[%clk 0:03:56]} 105. Nc5 {[%clk 0:01:47]}  Ba2 {[%clk 0:04:06]}
106. Nxa6 {[%clk 0:02:12]}  Kd7 {[%clk 0:04:27]} 107. Nc5+ {[%clk 0:01:48]}  Kd6 {[%clk 0:04:34]} 108. Ne4+ {[%clk 0:00:39]}  Ke5 {[%clk 0:04:42]}
109. Nc3 {[%clk 0:01:08]}  Bf7 {[%clk 0:04:50]} 110. b5 {[%clk 0:01:38]}  Kd6 {[%clk 0:03:49]} 111. Kh6 {[%clk 0:01:54]} 1-0

[Event "Irish Championship 2026"]
[Site "Talbot Hotel Stillorgan, Co.Dublin, IE"]
[Date "2026.08.07"]
[Round "7"]
[White "Freeman, Gordon"]
[Black "Oisin O'Cuilleanain"]
[Result "0-1"]
[Board "68"]
[TimeControl "40/5400+30:1800+30"]
[WhiteFideId "2501309"]
[WhiteElo "2068"]
[BlackElo "2128"]
[WhiteTitle "FM"]
[WhiteClock "0:00:39"]
[BlackClock "1:05:46"]
[Variant "Standard"]
[EndDate "2026.08.07"]
[EndTime "16:23:13"]

1. d4 {[%clk 1:26:16]}  Nf6 {[%clk 1:30:55]} 2. Nf3 {[%clk 1:26:38]}  g6 {[%clk 1:31:20]} 3. Bg5 {[%clk 1:24:40]}  Bg7 {[%clk 1:31:45]}
4. Nbd2 {[%clk 1:24:13]}  O-O {[%clk 1:32:06]} 5. c3 {[%clk 1:23:20]}  d6 {[%clk 1:32:24]} 6. e4 {[%clk 1:21:32]}  c5 {[%clk 1:32:45]}
7. dxc5 {[%clk 1:20:10]}  dxc5 {[%clk 1:33:08]} 8. Bc4 {[%clk 1:19:45]}  Qc7 {[%clk 1:32:57]} 9. O-O {[%clk 1:19:52]}  Nc6 {[%clk 1:33:04]}
10. Qc2 {[%clk 1:16:51]}  h6 {[%clk 1:30:56]} 11. Bxf6 {[%clk 1:06:05]}  Bxf6 {[%clk 1:29:43]} 12. e5 {[%clk 1:05:02]}  Bf5 {[%clk 1:30:07]}
13. Qc1 {[%clk 0:48:59]}  Nxe5 {[%clk 1:29:58]} 14. Nxe5 {[%clk 0:49:15]}  Bxe5 {[%clk 1:29:55]} 15. Nf3 {[%clk 0:49:18]}  Bf4 {[%clk 1:29:18]}
16. Qd1 {[%clk 0:45:54]}  Rad8 {[%clk 1:29:21]} 17. Qa4 {[%clk 0:43:59]}  Bg4 {[%clk 1:26:33]} 18. Nh4 {[%clk 0:39:48]}  Kg7 {[%clk 1:22:43]}
19. g3 {[%clk 0:36:51]}  Bd7 {[%clk 1:20:26]} 20. Qc2 {[%clk 0:33:03]}  Be8 {[%clk 1:10:53]} 21. Rae1 {[%clk 0:15:05]}  Bg5 {[%clk 1:10:28]}
22. f4 {[%clk 0:11:05]}  Bxh4 {[%clk 1:08:54]} 23. gxh4 {[%clk 0:11:31]}  b5 {[%clk 1:08:39]} 24. Be2 {[%clk 0:05:14]}  c4 {[%clk 1:06:17]}
25. f5 {[%clk 0:02:45]}  Rd6 {[%clk 1:06:18]} 26. h5 {[%clk 0:01:09]}  Rf6 {[%clk 1:05:26]} 27. fxg6 {[%clk 0:00:39]}  Qc5+ {[%clk 1:05:46]} 0-1

[Event "Irish Championship 2026"]
[Site "Talbot Hotel Stillorgan, Co.Dublin, IE"]
[Date "2026.08.07"]
[Round "7"]
[White "Paibir, Atharva"]
[Black "Woods, Yannick"]
[Result "0-1"]
[Board "69"]
[TimeControl "40/5400+30:1800+30"]
[WhiteFideId "2512882"]
[BlackFideId "2518384"]
[WhiteElo "2067"]
[BlackElo "2118"]
[WhiteClock "0:27:03"]
[BlackClock "0:33:03"]
[Variant "Standard"]
[EndDate "2026.08.07"]
[EndTime "17:47:53"]

1. c4 {[%clk 1:30:29]}  e5 {[%clk 1:30:53]} 2. Nc3 {[%clk 1:30:28]}  Bb4 {[%clk 1:31:16]} 3. Qc2 {[%clk 1:24:35]}  d6 {[%clk 1:29:52]}
4. Nf3 {[%clk 1:23:47]}  Nc6 {[%clk 1:23:05]} 5. g3 {[%clk 1:19:25]}  f5 {[%clk 1:22:39]} 6. d3 {[%clk 1:19:09]}  Nf6 {[%clk 1:22:32]}
7. Bg2 {[%clk 1:18:54]}  O-O {[%clk 1:22:52]} 8. O-O {[%clk 1:19:21]}  Bc5 {[%clk 1:05:44]} 9. a3 {[%clk 1:16:17]}  a5 {[%clk 1:05:54]}
10. e3 {[%clk 1:07:42]}  Kh8 {[%clk 1:00:20]} 11. Ne2 {[%clk 0:58:09]}  Ba7 {[%clk 0:55:54]} 12. d4 {[%clk 0:43:03]}  e4 {[%clk 0:53:16]}
13. Nd2 {[%clk 0:43:03]}  Ne7 {[%clk 0:53:45]} 14. b4 {[%clk 0:42:14]}  c6 {[%clk 0:52:50]} 15. b5 {[%clk 0:34:02]}  cxb5 {[%clk 0:49:29]}
16. cxb5 {[%clk 0:34:25]}  Be6 {[%clk 0:49:54]} 17. a4 {[%clk 0:29:01]}  Rc8 {[%clk 0:49:23]} 18. Qb1 {[%clk 0:29:27]}  Bc4 {[%clk 0:44:55]}
19. Nxc4 {[%clk 0:28:25]}  Rxc4 {[%clk 0:45:23]} 20. Bd2 {[%clk 0:27:48]}  Qc7 {[%clk 0:37:18]} 21. Rc1 {[%clk 0:27:45]}  Rc8 {[%clk 0:36:58]}
22. Bf1 {[%clk 0:27:32]}  Bb6 {[%clk 0:34:53]} 23. Nc3 {[%clk 0:23:34]}  Rb4 {[%clk 0:23:10]} 24. Qa2 {[%clk 0:23:17]}  Qd7 {[%clk 0:23:25]}
25. Ne2 {[%clk 0:15:08]}  Ra8 {[%clk 0:20:16]} 26. Bxb4 {[%clk 0:11:58]}  axb4 {[%clk 0:20:44]} 27. Nf4 {[%clk 0:12:17]}  d5 {[%clk 0:16:35]}
28. a5 {[%clk 0:11:45]}  g5 {[%clk 0:14:44]} 29. Ng2 {[%clk 0:10:11]}  f4 {[%clk 0:13:08]} 30. Qd2 {[%clk 0:09:12]}  fxe3 {[%clk 0:11:33]}
31. Nxe3 {[%clk 0:07:59]}  Bxa5 {[%clk 0:11:05]} 32. b6 {[%clk 0:07:26]}  Nc6 {[%clk 0:07:46]} 33. Rc5 {[%clk 0:06:30]}  Qd8 {[%clk 0:07:37]}
34. Nf5 {[%clk 0:05:34]}  Bxb6 {[%clk 0:04:04]} 35. Rxa8 {[%clk 0:05:59]}  Qxa8 {[%clk 0:04:22]} 36. Qxg5 {[%clk 0:06:15]}  Qf8 {[%clk 0:04:15]}
37. Rb5 {[%clk 0:05:59]}  Nxd4 {[%clk 0:02:56]} 38. Nxd4 {[%clk 0:06:04]}  Bxd4 {[%clk 0:03:25]} 39. Qd2 {[%clk 0:03:26]}  Bc5 {[%clk 0:02:30]}
40. Rxb7 {[%clk 0:02:24]}  Ng4 {[%clk 0:02:53]} 41. Qb2+ {[%clk 0:28:35]}  Kg8 {[%clk 0:33:22]} 42. Bh3 {[%clk 0:27:07]}  Bxf2+ {[%clk 0:32:13]}
43. Kh1 {[%clk 0:26:39]}  Qf3+ {[%clk 0:32:36]} 44. Bg2 {[%clk 0:27:03]}  Qd1+ {[%clk 0:33:03]} 0-1

[Event "Irish Championship 2026"]
[Site "Talbot Hotel Stillorgan, Co.Dublin, IE"]
[Date "2026.08.07"]
[Round "7"]
[White "Hushpit, Lukian"]
[Black "Bartczak, Korneliusz"]
[Result "0-1"]
[Board "70"]
[TimeControl "40/5400+30:1800+30"]
[WhiteFideId "14189208"]
[BlackFideId "2523558"]
[WhiteElo "2088"]
[BlackElo "2062"]
[WhiteClock "0:08:10"]
[BlackClock "0:01:39"]
[Variant "Standard"]
[EndDate "2026.08.07"]
[EndTime "20:01:34"]

1. e4 {[%clk 1:30:57]}  c5 {[%clk 1:30:47]} 2. Nf3 {[%clk 1:31:22]}  Nc6 {[%clk 1:31:13]} 3. d4 {[%clk 1:31:47]}  cxd4 {[%clk 1:31:40]}
4. Nxd4 {[%clk 1:32:12]}  e5 {[%clk 1:32:05]} 5. Nb5 {[%clk 1:32:38]}  d6 {[%clk 1:32:31]} 6. N1c3 {[%clk 1:33:00]}  a6 {[%clk 1:32:50]}
7. Na3 {[%clk 1:33:27]}  Be7 {[%clk 1:33:10]} 8. Nd5 {[%clk 1:33:49]}  Nf6 {[%clk 1:33:27]} 9. Nxf6+ {[%clk 1:29:25]}  Bxf6 {[%clk 1:33:34]}
10. Be3 {[%clk 1:29:05]}  Be6 {[%clk 1:08:48]} 11. Nc4 {[%clk 1:24:46]}  Be7 {[%clk 1:00:42]} 12. Nb6 {[%clk 1:24:04]}  Rb8 {[%clk 1:00:07]}
13. Be2 {[%clk 1:23:43]}  O-O {[%clk 0:58:14]} 14. O-O {[%clk 1:22:40]}  Bg5 {[%clk 0:54:52]} 15. Bxg5 {[%clk 1:20:53]}  Qxg5 {[%clk 0:52:10]}
16. c3 {[%clk 1:20:55]}  Rbd8 {[%clk 0:42:21]} 17. Bf3 {[%clk 1:04:30]}  g6 {[%clk 0:39:42]} 18. Re1 {[%clk 0:54:16]}  h5 {[%clk 0:36:50]}
19. a3 {[%clk 0:49:54]}  Kg7 {[%clk 0:32:05]} 20. Qc1 {[%clk 0:48:13]}  Qe7 {[%clk 0:31:00]} 21. Qe3 {[%clk 0:46:05]}  Rh8 {[%clk 0:25:57]}
22. Rad1 {[%clk 0:46:08]}  Qc7 {[%clk 0:24:50]} 23. Nd5 {[%clk 0:33:44]}  Bxd5 {[%clk 0:24:26]} 24. Rxd5 {[%clk 0:34:00]}  Ne7 {[%clk 0:19:51]}
25. Rd3 {[%clk 0:34:10]}  b5 {[%clk 0:17:27]} 26. Red1 {[%clk 0:31:34]}  Rd7 {[%clk 0:15:59]} 27. Qd2 {[%clk 0:29:59]}  Nc8 {[%clk 0:15:12]}
28. Be2 {[%clk 0:29:08]}  Qd8 {[%clk 0:11:44]} 29. a4 {[%clk 0:25:22]}  bxa4 {[%clk 0:08:32]} 30. Rd5 {[%clk 0:24:06]}  Qb6 {[%clk 0:05:53]}
31. c4 {[%clk 0:23:54]}  Rb7 {[%clk 0:05:19]} 32. Rb1 {[%clk 0:22:41]}  Qb4 {[%clk 0:04:32]} 33. Qxb4 {[%clk 0:12:35]}  Rxb4 {[%clk 0:05:01]}
34. Bd3 {[%clk 0:08:50]}  Nb6 {[%clk 0:01:47]} 35. Rxd6 {[%clk 0:09:17]}  Nxc4 {[%clk 0:02:01]} 36. Bxc4 {[%clk 0:09:44]}  Rxc4 {[%clk 0:02:28]}
37. f3 {[%clk 0:10:07]}  Rc2 {[%clk 0:01:43]} 38. h3 {[%clk 0:09:32]}  Rb8 {[%clk 0:01:22]} 39. Rxa6 {[%clk 0:09:53]}  Rd8 {[%clk 0:01:26]}
40. Kh2 {[%clk 0:08:59]}  Rdd2 {[%clk 0:01:21]} 41. Rg1 {[%clk 0:09:28]}  Rd4 {[%clk 0:29:51]} 42. Ra1 {[%clk 0:39:07]}  Rdd2 {[%clk 0:24:46]}
43. Rg1 {[%clk 0:39:19]}  Rf2 {[%clk 0:17:07]} 44. Kh1 {[%clk 0:38:37]}  Rxb2 {[%clk 0:14:13]} 45. Rxa4 {[%clk 0:37:04]}  h4 {[%clk 0:14:04]}
46. Ra5 {[%clk 0:36:53]}  Kf6 {[%clk 0:14:00]} 47. Rc5 {[%clk 0:37:14]}  Rbe2 {[%clk 0:07:55]} 48. Rb5 {[%clk 0:35:55]}  g5 {[%clk 0:05:17]}
49. Rb8 {[%clk 0:33:15]}  g4 {[%clk 0:01:19]} 50. hxg4 {[%clk 0:31:59]}  h3 {[%clk 0:01:29]} 51. Kh2 {[%clk 0:32:23]}  Rxf3 {[%clk 0:00:53]}
52. Rh8 {[%clk 0:26:28]}  hxg2 {[%clk 0:01:01]} 53. Rxg2 {[%clk 0:24:35]}  Rxe4 {[%clk 0:01:19]} 54. Rg8 {[%clk 0:22:21]}  Ref4 {[%clk 0:01:20]}
55. Re2 {[%clk 0:19:24]}  Rf2+ {[%clk 0:00:40]} 56. Rxf2 {[%clk 0:19:49]}  Rxf2+ {[%clk 0:01:08]} 57. Kg3 {[%clk 0:20:14]}  Rf4 {[%clk 0:00:52]}
58. Re8 {[%clk 0:19:10]}  Ra4 {[%clk 0:01:10]} 59. Kf3 {[%clk 0:18:59]}  Ra3+ {[%clk 0:01:37]} 60. Kf2 {[%clk 0:17:51]}  Ra2+ {[%clk 0:01:33]}
61. Kf3 {[%clk 0:15:47]}  Ra3+ {[%clk 0:02:00]} 62. Kf2 {[%clk 0:16:07]}  Ra4 {[%clk 0:01:51]} 63. Kf3 {[%clk 0:16:35]}  Ra1 {[%clk 0:02:02]}
64. Kf2 {[%clk 0:16:50]}  Ra3 {[%clk 0:01:43]} 65. Kg2 {[%clk 0:15:06]}  Ra6 {[%clk 0:00:48]} 66. Kf3 {[%clk 0:15:26]}  Re6 {[%clk 0:01:14]}
67. Rg8 {[%clk 0:15:35]}  Rb6 {[%clk 0:01:36]} 68. Re8 {[%clk 0:15:53]}  Rb7 {[%clk 0:00:50]} 69. Ke3 {[%clk 0:15:55]}  Re7 {[%clk 0:01:02]}
70. Rg8 {[%clk 0:16:19]}  Ke6 {[%clk 0:01:09]} 71. Ke4 {[%clk 0:15:46]}  f6 {[%clk 0:00:59]} 72. Rb8 {[%clk 0:15:46]}  Rg7 {[%clk 0:00:50]}
73. Rb6+ {[%clk 0:15:21]}  Kf7 {[%clk 0:01:11]} 74. Kf3 {[%clk 0:10:10]}  Kg6 {[%clk 0:01:35]} 75. Rb8 {[%clk 0:10:23]}  Ra7 {[%clk 0:01:30]}
76. Rg8+ {[%clk 0:10:29]}  Kf7 {[%clk 0:01:56]} 77. Rb8 {[%clk 0:10:45]}  Ra3+ {[%clk 0:02:10]} 78. Kf2 {[%clk 0:11:09]}  Rd3 {[%clk 0:01:17]}
79. Ra8 {[%clk 0:11:23]}  Ke6 {[%clk 0:01:02]} 80. Ra6+ {[%clk 0:11:35]}  Rd6 {[%clk 0:01:12]} 81. Ra5 {[%clk 0:11:56]}  Rd3 {[%clk 0:01:12]}
82. Ra6+ {[%clk 0:12:20]}  Kf7 {[%clk 0:01:40]} 83. Ra8 {[%clk 0:12:42]}  Rb3 {[%clk 0:01:01]} 84. Rc8 {[%clk 0:13:07]}  Ke7 {[%clk 0:01:18]}
85. Ra8 {[%clk 0:13:27]}  Rb6 {[%clk 0:01:14]} 86. Kf3 {[%clk 0:13:46]}  Ke6 {[%clk 0:01:38]} 87. Ra5 {[%clk 0:13:58]}  f5 {[%clk 0:01:37]}
88. gxf5+ {[%clk 0:14:22]}  Kxf5 {[%clk 0:02:04]} 89. Ra3 {[%clk 0:14:42]}  Rh6 {[%clk 0:02:25]} 90. Kg3 {[%clk 0:14:59]}  Rg6+ {[%clk 0:02:51]}
91. Kf2 {[%clk 0:15:05]}  Kf4 {[%clk 0:03:12]} 92. Ra8 {[%clk 0:15:30]}  Rb6 {[%clk 0:03:29]} 93. Ke2 {[%clk 0:13:56]}  Rb2+ {[%clk 0:03:01]}
94. Ke1 {[%clk 0:14:01]}  e4 {[%clk 0:03:13]} 95. Ra3 {[%clk 0:13:56]}  Ke5 {[%clk 0:03:22]} 96. Ra4 {[%clk 0:14:04]}  Kd5 {[%clk 0:03:36]}
97. Kd1 {[%clk 0:14:29]}  Rh2 {[%clk 0:03:47]} 98. Ke1 {[%clk 0:14:51]}  Ke5 {[%clk 0:04:15]} 99. Kf1 {[%clk 0:14:54]}  Kf4 {[%clk 0:04:38]}
100. Ra8 {[%clk 0:11:38]}  Kf3 {[%clk 0:04:29]} 101. Rf8+ {[%clk 0:11:19]}  Ke3 {[%clk 0:04:46]} 102. Ra8 {[%clk 0:10:59]}  Rh1+ {[%clk 0:05:02]}
103. Kg2 {[%clk 0:11:28]}  Rd1 {[%clk 0:05:13]} 104. Re8 {[%clk 0:10:48]}  Ra1 {[%clk 0:04:45]} 105. Re7 {[%clk 0:11:00]}  Rc1 {[%clk 0:02:13]}
106. Re8 {[%clk 0:11:15]}  Rc2+ {[%clk 0:02:01]} 107. Kf1 {[%clk 0:11:32]}  Rf2+ {[%clk 0:01:29]} 108. Ke1 {[%clk 0:11:55]}  Rf7 {[%clk 0:01:57]}
109. Re6 {[%clk 0:11:59]}  Rb7 {[%clk 0:01:13]} 110. Kf1 {[%clk 0:12:20]}  Rb1+ {[%clk 0:01:18]} 111. Kg2 {[%clk 0:12:49]}  Re1 {[%clk 0:01:39]}
112. Ra6 {[%clk 0:09:52]}  Rd1 {[%clk 0:00:44]} 113. Re6 {[%clk 0:08:51]}  Rd4 {[%clk 0:00:43]} 114. Kf1 {[%clk 0:08:58]}  Rb4 {[%clk 0:00:52]}
115. Re8 {[%clk 0:08:57]}  Rb1+ {[%clk 0:01:02]} 116. Kg2 {[%clk 0:09:25]}  Re1 {[%clk 0:00:57]} 117. Re7 {[%clk 0:09:48]}  Kd2 {[%clk 0:00:51]}
118. Rd7+ {[%clk 0:10:13]}  Ke2 {[%clk 0:01:14]} 119. Ra7 {[%clk 0:10:20]}  Rd1 {[%clk 0:01:37]} 120. Re7 {[%clk 0:09:14]}  e3 {[%clk 0:01:57]}
121. Re8 {[%clk 0:09:25]}  Rd7 {[%clk 0:02:13]} 122. Rg8 {[%clk 0:07:22]}  Rf7 {[%clk 0:02:26]} 123. Rg6 {[%clk 0:07:38]}  Rd7 {[%clk 0:01:26]}
124. Rg8 {[%clk 0:07:41]}  Kd2 {[%clk 0:01:21]} 125. Ra8 {[%clk 0:08:01]}  e2 {[%clk 0:01:21]} 126. Ra2+ {[%clk 0:08:10]}  Ke3 {[%clk 0:01:39]} 0-1